[Event "*** SCC Grand Prix: Titled Tuesday Blitz"]
[Site "Chess.com"]
[Date "2020.06.09"]
[Round "3"]
[White "Bayernbk"]
[Black "Charlottemillard17"]
[Result "1-0"]
[WhiteElo "2474"]
[BlackElo "1504"]
[TimeControl "180+1"]
[EndTime "9:27:07 PDT"]
[Termination "Bayernbk won by resignation"]

1. e4 {[%clk 0:02:59.7]} 1... e5 {[%clk 0:02:59.8]} 2. Nc3 {[%clk 0:03:00]} 2...
Bc5 {[%clk 0:02:56.7]} 3. Nf3 {[%clk 0:02:59.7]} 3... d6 {[%clk 0:02:56]} 4. d4
{[%clk 0:02:58.6]} 4... exd4 {[%clk 0:02:55.1]} 5. Nxd4 {[%clk 0:02:59.5]} 5...
Nf6 {[%clk 0:02:50.7]} 6. g3 {[%clk 0:02:52.9]} 6... Bg4 {[%clk 0:02:48.5]} 7.
Qd3 {[%clk 0:02:45.5]} 7... Nbd7 {[%clk 0:02:42.6]} 8. f4 {[%clk 0:02:32.3]}
8... Qe7 {[%clk 0:02:00.2]} 9. Bg2 {[%clk 0:02:21.2]} 9... O-O {[%clk
0:01:41.2]} 10. h3 {[%clk 0:02:04.1]} 10... Be6 {[%clk 0:01:01.9]} 11. Bd2
{[%clk 0:02:03.8]} 11... Nb6 {[%clk 0:00:44.3]} 12. Nxe6 {[%clk 0:01:55.5]}
12... Qxe6 {[%clk 0:00:43]} 13. O-O-O {[%clk 0:01:53.7]} 13... Nbd7 {[%clk
0:00:16.2]} 14. g4 {[%clk 0:01:49.3]} 14... Ne8 {[%clk 0:00:12.9]} 15. Nd5
{[%clk 0:01:44.8]} 15... c6 {[%clk 0:00:11.8]} 16. f5 {[%clk 0:01:41.3]} 16...
Qe5 {[%clk 0:00:09]} 17. Bc3 {[%clk 0:01:37.9]} 17... Qg3 {[%clk 0:00:08.2]} 18.
Qxg3 {[%clk 0:01:37.4]} 18... Ne5 {[%clk 0:00:06]} 19. Ne7+ {[%clk 0:01:36.4]}
19... Kh8 {[%clk 0:00:05]} 20. Bxe5 {[%clk 0:01:37.3]} 20... dxe5 {[%clk
0:00:04.6]} 21. Qxe5 {[%clk 0:01:38.2]} 21... Nf6 {[%clk 0:00:04.7]} 22. g5
{[%clk 0:01:34.7]} 22... Rfe8 {[%clk 0:00:05.6]} 23. gxf6 {[%clk 0:01:34.7]} 1-0

[Event "*** SCC Grand Prix: Titled Tuesday Blitz"]
[Site "Chess.com"]
[Date "2020.06.09"]
[Round "3"]
[White "SCIM"]
[Black "queen_iryna"]
[Result "1-0"]
[WhiteElo "2551"]
[BlackElo "2318"]
[TimeControl "180+1"]
[EndTime "9:27:11 PDT"]
[Termination "SCIM won by resignation"]

1. d4 {[%clk 0:03:00.9]} 1... d5 {[%clk 0:02:59.6]} 2. c4 {[%clk 0:03:00.2]}
2... c6 {[%clk 0:02:59.8]} 3. Nf3 {[%clk 0:02:59.5]} 3... Nf6 {[%clk 0:02:59.7]}
4. e3 {[%clk 0:02:58.7]} 4... Bf5 {[%clk 0:02:58.3]} 5. Nc3 {[%clk 0:02:57.6]}
5... e6 {[%clk 0:02:57.7]} 6. Nh4 {[%clk 0:02:57]} 6... Bg6 {[%clk 0:02:57.3]}
7. Qb3 {[%clk 0:02:55.8]} 7... Qb6 {[%clk 0:02:55.4]} 8. Nxg6 {[%clk 0:02:55.3]}
8... hxg6 {[%clk 0:02:55]} 9. Bd2 {[%clk 0:02:55.7]} 9... Nbd7 {[%clk
0:02:51.7]} 10. Qc2 {[%clk 0:02:50.6]} 10... Bb4 {[%clk 0:02:42.3]} 11. Bd3
{[%clk 0:02:45.8]} 11... Bxc3 {[%clk 0:02:38.4]} 12. Bxc3 {[%clk 0:02:45.1]}
12... Qc7 {[%clk 0:02:38.3]} 13. h3 {[%clk 0:02:38.5]} 13... g5 {[%clk
0:02:36.9]} 14. O-O-O {[%clk 0:02:37.3]} 14... O-O-O {[%clk 0:02:32.5]} 15. Kb1
{[%clk 0:02:29.6]} 15... Rh6 {[%clk 0:02:14.3]} 16. Rhe1 {[%clk 0:02:24.6]}
16... Nb6 {[%clk 0:01:58.2]} 17. c5 {[%clk 0:02:21.2]} 17... Nbd7 {[%clk
0:01:58]} 18. Qa4 {[%clk 0:02:21.5]} 18... Kb8 {[%clk 0:01:56.9]} 19. Ba5 {[%clk
0:02:20]} 19... b6 {[%clk 0:01:54.5]} 20. cxb6 {[%clk 0:02:19]} 20... axb6
{[%clk 0:01:55.4]} 21. Bd2 {[%clk 0:02:17.9]} 21... b5 {[%clk 0:01:38.1]} 22.
Qa3 {[%clk 0:02:13.7]} 22... Kb7 {[%clk 0:01:32.4]} 23. Ba5 {[%clk 0:02:08.1]}
23... Nb6 {[%clk 0:01:27.9]} 24. Rc1 {[%clk 0:02:05.9]} 24... Qd7 {[%clk
0:01:19.6]} 25. Qc5 {[%clk 0:01:47]} 25... Na4 {[%clk 0:01:19.1]} 26. Qb4 {[%clk
0:01:46.2]} 26... Ra8 {[%clk 0:01:11.2]} 27. Rxc6 {[%clk 0:01:37.2]} 27... Qxc6
{[%clk 0:00:32.1]} 28. Bxb5 {[%clk 0:01:36.7]} 28... Qb6 {[%clk 0:00:18.3]} 29.
Bxb6 {[%clk 0:01:33.8]} 29... Nxb6 {[%clk 0:00:19.2]} 30. Qe7+ {[%clk
0:01:31.6]} 30... Nfd7 {[%clk 0:00:19.8]} 31. Bxd7 {[%clk 0:01:30.8]} 1-0

[Event "*** SCC Grand Prix: Titled Tuesday Blitz"]
[Site "Chess.com"]
[Date "2020.06.09"]
[Round "3"]
[White "cassoulet"]
[Black "Enriquack"]
[Result "1-0"]
[WhiteElo "2615"]
[BlackElo "2410"]
[TimeControl "180+1"]
[EndTime "9:27:23 PDT"]
[Termination "cassoulet won by resignation"]

1. e4 {[%clk 0:03:00.9]} 1... c5 {[%clk 0:03:00]} 2. Nf3 {[%clk 0:03:00.5]} 2...
e6 {[%clk 0:03:00]} 3. d4 {[%clk 0:02:59.8]} 3... cxd4 {[%clk 0:03:00.9]} 4.
Nxd4 {[%clk 0:03:00.1]} 4... Nc6 {[%clk 0:03:01.4]} 5. Nc3 {[%clk 0:03:00.6]}
5... Qc7 {[%clk 0:03:01.7]} 6. Be2 {[%clk 0:03:00.7]} 6... Nf6 {[%clk
0:03:01.3]} 7. O-O {[%clk 0:03:01.2]} 7... Be7 {[%clk 0:03:01.5]} 8. Be3 {[%clk
0:03:01.3]} 8... O-O {[%clk 0:03:00.5]} 9. f4 {[%clk 0:03:01.3]} 9... d6 {[%clk
0:03:00.8]} 10. a4 {[%clk 0:02:59.8]} 10... a6 {[%clk 0:02:45.3]} 11. Qe1 {[%clk
0:02:57.7]} 11... Nxd4 {[%clk 0:02:34.3]} 12. Bxd4 {[%clk 0:02:55]} 12... e5
{[%clk 0:02:33.9]} 13. fxe5 {[%clk 0:02:41]} 13... dxe5 {[%clk 0:02:33.1]} 14.
Qg3 {[%clk 0:02:41.3]} 14... Bd6 {[%clk 0:02:02]} 15. Be3 {[%clk 0:02:10.6]}
15... Kh8 {[%clk 0:01:52.5]} 16. Rad1 {[%clk 0:01:45.6]} 16... Bc5 {[%clk
0:01:50.9]} 17. Kh1 {[%clk 0:01:39.7]} 17... Bxe3 {[%clk 0:01:40]} 18. Qxe3
{[%clk 0:01:40.6]} 18... Be6 {[%clk 0:01:40.3]} 19. Nd5 {[%clk 0:01:21]} 19...
Qxc2 {[%clk 0:01:25.9]} 20. Bd3 {[%clk 0:01:10.5]} 20... Qxb2 {[%clk 0:01:14.9]}
21. Rxf6 {[%clk 0:01:02.5]} 21... Bxd5 {[%clk 0:01:13.4]} 22. exd5 {[%clk
0:00:57.2]} 22... e4 {[%clk 0:01:11]} 23. Qxe4 {[%clk 0:00:56.1]} 23... g6
{[%clk 0:01:05.5]} 24. Rff1 {[%clk 0:00:52.4]} 24... Rfe8 {[%clk 0:00:52]} 25.
Qf4 {[%clk 0:00:49.3]} 25... f5 {[%clk 0:00:51.9]} 26. d6 {[%clk 0:00:48.9]}
26... Rad8 {[%clk 0:00:51.5]} 27. Bc4 {[%clk 0:00:44.7]} 27... Qb4 {[%clk
0:00:45.6]} 28. Qd4+ {[%clk 0:00:43.9]} 1-0

[Event "*** SCC Grand Prix: Titled Tuesday Blitz"]
[Site "Chess.com"]
[Date "2020.06.09"]
[Round "3"]
[White "i_am_sankalp"]
[Black "TrickyFortem"]
[Result "0-1"]
[WhiteElo "2182"]
[BlackElo "2378"]
[TimeControl "180+1"]
[EndTime "9:27:25 PDT"]
[Termination "TrickyFortem won by checkmate"]

1. e4 {[%clk 0:03:00.9]} 1... c5 {[%clk 0:02:51.1]} 2. Nf3 {[%clk 0:03:00.8]}
2... d6 {[%clk 0:02:50.9]} 3. d4 {[%clk 0:03:00.8]} 3... cxd4 {[%clk 0:02:51.4]}
4. Nxd4 {[%clk 0:03:01.7]} 4... Nf6 {[%clk 0:02:51.9]} 5. Nc3 {[%clk 0:03:02.3]}
5... a6 {[%clk 0:02:51.3]} 6. Bg5 {[%clk 0:03:01.9]} 6... e6 {[%clk 0:02:50.4]}
7. f4 {[%clk 0:03:02.1]} 7... Nbd7 {[%clk 0:02:50.9]} 8. Qf3 {[%clk 0:03:01.3]}
8... h6 {[%clk 0:02:50.7]} 9. Bh4 {[%clk 0:03:00.8]} 9... Qc7 {[%clk 0:02:44.3]}
10. O-O-O {[%clk 0:03:00.2]} 10... Be7 {[%clk 0:02:40.4]} 11. Bd3 {[%clk
0:03:00.1]} 11... b5 {[%clk 0:02:39.6]} 12. Rhe1 {[%clk 0:02:59.8]} 12... Bb7
{[%clk 0:02:37.7]} 13. Nd5 {[%clk 0:03:00.1]} 13... Nxd5 {[%clk 0:02:36.2]} 14.
exd5 {[%clk 0:02:54.9]} 14... Bxh4 {[%clk 0:02:35.9]} 15. Rxe6+ {[%clk
0:02:51.1]} 15... fxe6 {[%clk 0:02:31.9]} 16. Nxe6 {[%clk 0:02:51.2]} 16... Qb6
{[%clk 0:02:20.3]} 17. Qh5+ {[%clk 0:02:50]} 17... Ke7 {[%clk 0:02:19.5]} 18.
Qxh4+ {[%clk 0:02:45.4]} 18... Nf6 {[%clk 0:02:19.8]} 19. Re1 {[%clk 0:02:43.6]}
19... Bxd5 {[%clk 0:02:08.2]} 20. Nxg7+ {[%clk 0:02:15.2]} 20... Kf7 {[%clk
0:02:08.5]} 21. Nh5 {[%clk 0:02:01.2]} 21... Qd8 {[%clk 0:02:01.9]} 22. Nxf6
{[%clk 0:02:00.2]} 22... Qxf6 {[%clk 0:02:02.8]} 23. Qh5+ {[%clk 0:02:00.7]}
23... Kg7 {[%clk 0:02:02.5]} 24. Qxd5 {[%clk 0:01:57]} 24... Rae8 {[%clk
0:02:02]} 25. Rf1 {[%clk 0:01:35.8]} 25... Re7 {[%clk 0:01:57]} 26. g4 {[%clk
0:01:05.4]} 26... Rhe8 {[%clk 0:01:53.2]} 27. g5 {[%clk 0:00:59.3]} 27... hxg5
{[%clk 0:01:52.4]} 28. fxg5 {[%clk 0:00:55.7]} 28... Qe5 {[%clk 0:01:46.9]} 29.
Qg2 {[%clk 0:00:43.6]} 29... Qe3+ {[%clk 0:01:44.4]} 30. Kd1 {[%clk 0:00:41.2]}
30... Rf8 {[%clk 0:01:38.9]} 31. h4 {[%clk 0:00:31.2]} 31... Qe5 {[%clk
0:01:20.8]} 32. Rxf8 {[%clk 0:00:22.5]} 32... Qe1# {[%clk 0:01:19.5]} 0-1

[Event "*** SCC Grand Prix: Titled Tuesday Blitz"]
[Site "Chess.com"]
[Date "2020.06.09"]
[Round "3"]
[White "Training_Day"]
[Black "anastasiyakarlovych"]
[Result "1-0"]
[WhiteElo "2310"]
[BlackElo "1949"]
[TimeControl "180+1"]
[EndTime "9:27:25 PDT"]
[Termination "Training_Day won by resignation"]

1. e4 {[%clk 0:03:00.9]} 1... e5 {[%clk 0:02:58.2]} 2. f4 {[%clk 0:03:00.2]}
2... exf4 {[%clk 0:02:57.2]} 3. Nf3 {[%clk 0:03:00.8]} 3... Be7 {[%clk
0:02:55.6]} 4. Bc4 {[%clk 0:02:59.8]} 4... Bh4+ {[%clk 0:02:54.9]} 5. Kf1 {[%clk
0:02:55.9]} 5... d5 {[%clk 0:02:55.4]} 6. Bxd5 {[%clk 0:02:48.9]} 6... Nf6
{[%clk 0:02:54.8]} 7. Nxh4 {[%clk 0:02:38.1]} 7... Nxd5 {[%clk 0:02:54.2]} 8.
exd5 {[%clk 0:02:39]} 8... Qxh4 {[%clk 0:02:53]} 9. Qe2+ {[%clk 0:02:33.5]} 9...
Kd8 {[%clk 0:02:44.7]} 10. Qf2 {[%clk 0:02:30.5]} 10... Qf6 {[%clk 0:02:37.5]}
11. Nc3 {[%clk 0:02:22.5]} 11... Re8 {[%clk 0:02:32.5]} 12. d3 {[%clk
0:02:18.2]} 12... g5 {[%clk 0:02:25.7]} 13. h4 {[%clk 0:02:18]} 13... h6 {[%clk
0:02:25.1]} 14. Bd2 {[%clk 0:02:13.5]} 14... Bf5 {[%clk 0:02:21]} 15. hxg5
{[%clk 0:02:09.4]} 15... hxg5 {[%clk 0:02:20.1]} 16. Re1 {[%clk 0:02:05.1]}
16... Rxe1+ {[%clk 0:02:10.1]} 17. Qxe1 {[%clk 0:01:56.6]} 17... Nd7 {[%clk
0:02:05.2]} 18. Ne4 {[%clk 0:01:41.5]} 18... Bxe4 {[%clk 0:01:59.5]} 19. Bc3
{[%clk 0:01:20]} 19... Qd6 {[%clk 0:00:58.8]} 20. Rh8+ {[%clk 0:01:10.6]} 20...
Nf8 {[%clk 0:00:55.4]} 21. Qxe4 {[%clk 0:01:07.6]} 21... c6 {[%clk 0:00:47.2]}
22. dxc6 {[%clk 0:00:51.8]} 22... bxc6 {[%clk 0:00:35.4]} 23. Bb4 {[%clk
0:00:51.8]} 1-0

[Event "*** SCC Grand Prix: Titled Tuesday Blitz"]
[Site "Chess.com"]
[Date "2020.06.09"]
[Round "3"]
[White "DenLaz"]
[Black "Makswolf200817"]
[Result "1-0"]
[WhiteElo "2636"]
[BlackElo "2422"]
[TimeControl "180+1"]
[EndTime "9:27:28 PDT"]
[Termination "DenLaz won by resignation"]

1. d4 {[%clk 0:03:00.5]} 1... d5 {[%clk 0:02:59.6]} 2. c4 {[%clk 0:03:00.7]}
2... e6 {[%clk 0:02:59]} 3. Nf3 {[%clk 0:02:58.8]} 3... Nf6 {[%clk 0:02:56.3]}
4. Nc3 {[%clk 0:02:58.8]} 4... c6 {[%clk 0:02:55.2]} 5. e3 {[%clk 0:02:57.5]}
5... Nbd7 {[%clk 0:02:55.2]} 6. Qc2 {[%clk 0:02:57.8]} 6... Bd6 {[%clk
0:02:54.5]} 7. Bd2 {[%clk 0:02:57.9]} 7... O-O {[%clk 0:02:52.4]} 8. O-O-O
{[%clk 0:02:57.9]} 8... dxc4 {[%clk 0:02:50.6]} 9. e4 {[%clk 0:02:47.2]} 9... e5
{[%clk 0:02:40.8]} 10. dxe5 {[%clk 0:02:42.8]} 10... Bxe5 {[%clk 0:02:37.8]} 11.
Bxc4 {[%clk 0:02:39.5]} 11... Qe7 {[%clk 0:02:34.5]} 12. Nxe5 {[%clk 0:02:37.5]}
12... Nxe5 {[%clk 0:02:35.4]} 13. Bb3 {[%clk 0:02:37.8]} 13... Rd8 {[%clk
0:02:31]} 14. Be3 {[%clk 0:02:32.4]} 14... Be6 {[%clk 0:02:14.9]} 15. f4 {[%clk
0:02:14.2]} 15... Bxb3 {[%clk 0:02:11.1]} 16. axb3 {[%clk 0:02:12.3]} 16... Neg4
{[%clk 0:02:10.9]} 17. Bd4 {[%clk 0:02:11.3]} 17... c5 {[%clk 0:01:57]} 18. Bxf6
{[%clk 0:02:09.9]} 18... Qxf6 {[%clk 0:01:56.1]} 19. Nd5 {[%clk 0:02:08.8]}
19... Qa6 {[%clk 0:01:52.9]} 20. Kb1 {[%clk 0:02:07.1]} 20... Qa5 {[%clk
0:01:31]} 21. h3 {[%clk 0:02:02.1]} 21... Nh6 {[%clk 0:01:19.9]} 22. g4 {[%clk
0:01:57.9]} 22... Kh8 {[%clk 0:01:19.8]} 23. Qc3 {[%clk 0:01:47.7]} 23... Qxc3
{[%clk 0:01:17]} 24. bxc3 {[%clk 0:01:48.6]} 24... f6 {[%clk 0:01:14.5]} 25. Kc2
{[%clk 0:01:47.7]} 25... Nf7 {[%clk 0:01:13.7]} 26. Rhe1 {[%clk 0:01:46.4]}
26... Kg8 {[%clk 0:01:12.4]} 27. e5 {[%clk 0:01:41]} 27... fxe5 {[%clk
0:01:11.1]} 28. fxe5 {[%clk 0:01:41.9]} 28... Ng5 {[%clk 0:00:51.7]} 29. e6
{[%clk 0:01:29.2]} 29... Nxh3 {[%clk 0:00:33.3]} 30. e7 {[%clk 0:01:27.6]} 30...
Re8 {[%clk 0:00:33.2]} 31. Nc7 {[%clk 0:01:27.5]} 31... Kf7 {[%clk 0:00:33.4]}
32. Rd7 {[%clk 0:01:22.7]} 32... Nf4 {[%clk 0:00:29.7]} 33. Nxe8 {[%clk
0:01:20.4]} 33... Rxe8 {[%clk 0:00:29]} 34. Rxb7 {[%clk 0:01:20.8]} 34... a5
{[%clk 0:00:27.5]} 35. Ra7 {[%clk 0:01:19.7]} 35... g5 {[%clk 0:00:26.5]} 36.
Rxa5 {[%clk 0:01:19.3]} 36... Rxe7 {[%clk 0:00:26.5]} 1-0

[Event "*** SCC Grand Prix: Titled Tuesday Blitz"]
[Site "Chess.com"]
[Date "2020.06.09"]
[Round "3"]
[White "coalescenet"]
[Black "PawnEatingZombie"]
[Result "1-0"]
[WhiteElo "2351"]
[BlackElo "2114"]
[TimeControl "180+1"]
[EndTime "9:27:31 PDT"]
[Termination "coalescenet won by resignation"]

1. d4 {[%clk 0:03:00]} 1... d5 {[%clk 0:02:59.3]} 2. c4 {[%clk 0:03:00.4]} 2...
e6 {[%clk 0:02:58.8]} 3. Nc3 {[%clk 0:03:00.4]} 3... Bb4 {[%clk 0:02:59.4]} 4.
e3 {[%clk 0:02:59]} 4... Nf6 {[%clk 0:02:58]} 5. Nf3 {[%clk 0:02:59.3]} 5... O-O
{[%clk 0:02:56.3]} 6. Bd2 {[%clk 0:02:59.5]} 6... c5 {[%clk 0:02:55.3]} 7. a3
{[%clk 0:02:59.8]} 7... Bxc3 {[%clk 0:02:51.6]} 8. Bxc3 {[%clk 0:02:59.9]} 8...
Ne4 {[%clk 0:02:48.7]} 9. Bd3 {[%clk 0:02:59.2]} 9... Nxc3 {[%clk 0:02:48]} 10.
bxc3 {[%clk 0:02:59.8]} 10... b6 {[%clk 0:02:33.5]} 11. cxd5 {[%clk 0:02:56.2]}
11... exd5 {[%clk 0:02:31.9]} 12. O-O {[%clk 0:02:56.4]} 12... Ba6 {[%clk
0:02:30.8]} 13. Bxa6 {[%clk 0:02:51.8]} 13... Nxa6 {[%clk 0:02:31.7]} 14. Qd3
{[%clk 0:02:51.3]} 14... Nc7 {[%clk 0:02:27.3]} 15. a4 {[%clk 0:02:44]} 15...
Ne6 {[%clk 0:02:20.2]} 16. Rfb1 {[%clk 0:02:43]} 16... Rb8 {[%clk 0:01:59]} 17.
a5 {[%clk 0:02:42.7]} 17... c4 {[%clk 0:01:58.3]} 18. Qf5 {[%clk 0:02:40.1]}
18... b5 {[%clk 0:01:57.3]} 19. Ne5 {[%clk 0:02:39]} 19... Qc7 {[%clk
0:01:52.5]} 20. Rb4 {[%clk 0:02:31.9]} 20... a6 {[%clk 0:01:49.5]} 21. h4 {[%clk
0:02:26]} 21... Rfe8 {[%clk 0:01:48.6]} 22. h5 {[%clk 0:02:26.1]} 22... f6
{[%clk 0:01:46.9]} 23. Nf3 {[%clk 0:02:24.6]} 23... Qd7 {[%clk 0:01:36.6]} 24.
h6 {[%clk 0:02:23.6]} 24... Nf8 {[%clk 0:01:33.3]} 25. Qxd7 {[%clk 0:02:21.8]}
25... Nxd7 {[%clk 0:01:32.9]} 26. hxg7 {[%clk 0:02:22.5]} 26... Kxg7 {[%clk
0:01:33.2]} 27. g4 {[%clk 0:02:23.1]} 27... f5 {[%clk 0:01:15.3]} 28. gxf5
{[%clk 0:02:18.1]} 28... Nf6 {[%clk 0:01:15.7]} 29. Ne5 {[%clk 0:02:15.9]} 29...
Ne4 {[%clk 0:01:12.5]} 30. Rc1 {[%clk 0:02:09.1]} 30... Rb7 {[%clk 0:01:04.3]}
31. f3 {[%clk 0:02:06.5]} 31... Nd6 {[%clk 0:01:03.8]} 32. Kf2 {[%clk 0:01:58]}
32... Nxf5 {[%clk 0:01:03.4]} 33. Rh1 {[%clk 0:01:53.4]} 33... Nd6 {[%clk
0:00:43.6]} 34. Rbb1 {[%clk 0:01:50.9]} 34... Kh8 {[%clk 0:00:31.6]} 35. Rbg1
{[%clk 0:01:44.2]} 35... Rg7 {[%clk 0:00:31.4]} 36. Ng6+ {[%clk 0:01:43.4]}
36... Kg8 {[%clk 0:00:31.3]} 37. Nf4 {[%clk 0:01:43.9]} 37... b4 {[%clk
0:00:10.5]} 38. cxb4 {[%clk 0:01:42.5]} 38... c3 {[%clk 0:00:10.7]} 39. Nxd5
{[%clk 0:01:41.7]} 39... c2 {[%clk 0:00:10.9]} 40. Nf6+ {[%clk 0:01:41.9]} 40...
Kf7 {[%clk 0:00:08.8]} 41. Rxg7+ {[%clk 0:01:37.1]} 41... Kxg7 {[%clk
0:00:09.1]} 42. Nxe8+ {[%clk 0:01:37.1]} 42... Nxe8 {[%clk 0:00:09.7]} 43. Rc1
{[%clk 0:01:37.3]} 1-0

[Event "*** SCC Grand Prix: Titled Tuesday Blitz"]
[Site "Chess.com"]
[Date "2020.06.09"]
[Round "3"]
[White "WinstonSilvakov"]
[Black "LimeInTheCoconut"]
[Result "1-0"]
[WhiteElo "2106"]
[BlackElo "2467"]
[TimeControl "180+1"]
[EndTime "9:27:34 PDT"]
[Termination "WinstonSilvakov won by checkmate"]

1. d4 {[%clk 0:03:00.9]} 1... Nf6 {[%clk 0:02:59.5]} 2. e3 {[%clk 0:02:59.8]}
2... e6 {[%clk 0:02:58.3]} 3. Bd3 {[%clk 0:02:58.4]} 3... d5 {[%clk 0:02:56.2]}
4. Nd2 {[%clk 0:02:57.2]} 4... c5 {[%clk 0:02:52.2]} 5. c3 {[%clk 0:02:52.5]}
5... Nbd7 {[%clk 0:02:43.6]} 6. f4 {[%clk 0:02:51.2]} 6... b6 {[%clk 0:02:38.5]}
7. Ngf3 {[%clk 0:02:49.9]} 7... Bb7 {[%clk 0:02:32.9]} 8. Ne5 {[%clk 0:02:48.9]}
8... Be7 {[%clk 0:02:29.8]} 9. Qf3 {[%clk 0:02:47.3]} 9... O-O {[%clk
0:02:05.8]} 10. O-O {[%clk 0:02:46]} 10... a5 {[%clk 0:01:34.1]} 11. Rf2 {[%clk
0:02:31.3]} 11... a4 {[%clk 0:01:24.2]} 12. g4 {[%clk 0:02:29.5]} 12... Ne8
{[%clk 0:01:08.8]} 13. g5 {[%clk 0:02:27.5]} 13... Nd6 {[%clk 0:00:55.7]} 14.
Bxh7+ {[%clk 0:02:26]} 14... Kxh7 {[%clk 0:00:53.9]} 15. Qh5+ {[%clk 0:02:24.2]}
15... Kg8 {[%clk 0:00:50.5]} 16. Rf3 {[%clk 0:02:23.4]} 16... Nxe5 {[%clk
0:00:24.4]} 17. dxe5 {[%clk 0:02:20.4]} 17... g6 {[%clk 0:00:20.1]} 18. Qh6
{[%clk 0:02:18.4]} 18... Nf5 {[%clk 0:00:19.3]} 19. Qh3 {[%clk 0:02:11.8]} 19...
d4 {[%clk 0:00:19.4]} 20. e4 {[%clk 0:02:10.5]} 20... dxc3 {[%clk 0:00:19.7]}
21. bxc3 {[%clk 0:02:08.9]} 21... Ng7 {[%clk 0:00:17.1]} 22. Qh6 {[%clk
0:02:01.4]} 22... Nh5 {[%clk 0:00:09.9]} 23. Rh3 {[%clk 0:02:00.9]} 23... Re8
{[%clk 0:00:10.3]} 24. Rxh5 {[%clk 0:01:58]} 24... gxh5 {[%clk 0:00:10]} 25. g6
{[%clk 0:01:57.5]} 25... fxg6 {[%clk 0:00:06.1]} 26. Qxg6+ {[%clk 0:01:57.4]}
26... Kf8 {[%clk 0:00:05.9]} 27. Qh6+ {[%clk 0:01:57.2]} 27... Kg8 {[%clk
0:00:04.8]} 28. Qg6+ {[%clk 0:01:56.6]} 28... Kf8 {[%clk 0:00:05.2]} 29. f5
{[%clk 0:01:37.3]} 29... exf5 {[%clk 0:00:05.7]} 30. Nf3 {[%clk 0:01:35.5]}
30... Qd1+ {[%clk 0:00:05.3]} 31. Kg2 {[%clk 0:01:33.5]} 31... Qe2+ {[%clk
0:00:05.5]} 32. Kg3 {[%clk 0:01:30.1]} 32... Qxe4 {[%clk 0:00:04.8]} 33. Bh6#
{[%clk 0:01:27.5]} 1-0

[Event "*** SCC Grand Prix: Titled Tuesday Blitz"]
[Site "Chess.com"]
[Date "2020.06.09"]
[Round "3"]
[White "biaf13"]
[Black "BlackBoarder"]
[Result "0-1"]
[WhiteElo "2045"]
[BlackElo "2653"]
[TimeControl "180+1"]
[EndTime "9:27:36 PDT"]
[Termination "BlackBoarder won by resignation"]

1. e4 {[%clk 0:03:00.9]} 1... e6 {[%clk 0:02:59]} 2. d4 {[%clk 0:02:59.8]} 2...
d5 {[%clk 0:02:59.2]} 3. Nc3 {[%clk 0:02:58.5]} 3... Bb4 {[%clk 0:02:59.1]} 4.
e5 {[%clk 0:02:58.1]} 4... Ne7 {[%clk 0:02:58.2]} 5. Qg4 {[%clk 0:02:57.2]} 5...
c5 {[%clk 0:02:57.9]} 6. a3 {[%clk 0:02:53.2]} 6... Qa5 {[%clk 0:02:57]} 7. Bd2
{[%clk 0:02:45.3]} 7... cxd4 {[%clk 0:02:54.7]} 8. Qxd4 {[%clk 0:02:44.6]} 8...
Nbc6 {[%clk 0:02:53]} 9. Bb5 {[%clk 0:02:37.5]} 9... O-O {[%clk 0:02:50.2]} 10.
Bxc6 {[%clk 0:02:33.5]} 10... Nxc6 {[%clk 0:02:47.8]} 11. Qf4 {[%clk 0:02:23.6]}
11... d4 {[%clk 0:02:43.3]} 12. Ne4 {[%clk 0:02:22.3]} 12... Bxd2+ {[%clk
0:02:38.3]} 13. Nxd2 {[%clk 0:02:21.9]} 13... Qxe5+ {[%clk 0:02:16.9]} 14. Qxe5
{[%clk 0:02:20.2]} 14... Nxe5 {[%clk 0:02:17.8]} 15. Ngf3 {[%clk 0:02:20.5]}
15... Nxf3+ {[%clk 0:02:06.7]} 16. Nxf3 {[%clk 0:02:21.4]} 16... e5 {[%clk
0:02:07]} 17. O-O-O {[%clk 0:02:19.9]} 17... Bg4 {[%clk 0:01:54.3]} 18. h3
{[%clk 0:02:14.9]} 18... Bxf3 {[%clk 0:01:53.4]} 19. gxf3 {[%clk 0:02:15.8]}
19... Rac8 {[%clk 0:01:43.1]} 20. Rhe1 {[%clk 0:02:14.4]} 20... Rc5 {[%clk
0:01:20.7]} 21. Re2 {[%clk 0:02:05.5]} 21... f6 {[%clk 0:01:17.9]} 22. f4 {[%clk
0:02:04.1]} 22... g6 {[%clk 0:00:55.2]} 23. fxe5 {[%clk 0:02:01.3]} 23... fxe5
{[%clk 0:00:54.6]} 24. Rde1 {[%clk 0:01:56.3]} 24... d3 {[%clk 0:00:50.1]} 25.
Rd2 {[%clk 0:01:54.2]} 25... dxc2 {[%clk 0:00:49.1]} 26. Rxc2 {[%clk 0:01:55.1]}
26... Rxc2+ {[%clk 0:00:48.9]} 27. Kxc2 {[%clk 0:01:55.5]} 27... Rxf2+ {[%clk
0:00:49.3]} 28. Kb3 {[%clk 0:01:55.1]} 28... Rf5 {[%clk 0:00:41.7]} 29. Kc4
{[%clk 0:01:54.4]} 29... Kf7 {[%clk 0:00:40]} 30. Kd5 {[%clk 0:01:54.3]} 30...
Kf6 {[%clk 0:00:38.3]} 31. Kd6 {[%clk 0:01:54.3]} 31... Rf3 {[%clk 0:00:36.6]}
32. Rh1 {[%clk 0:01:51.7]} 32... Rd3+ {[%clk 0:00:34]} 33. Kc7 {[%clk
0:01:51.9]} 33... Rb3 {[%clk 0:00:34.3]} 34. Rh2 {[%clk 0:01:51.3]} 34... e4
{[%clk 0:00:32.8]} 35. Kd6 {[%clk 0:01:51.4]} 35... Kf5 {[%clk 0:00:32.8]} 36.
Kd5 {[%clk 0:01:51.7]} 36... a5 {[%clk 0:00:28.7]} 37. Kc4 {[%clk 0:01:44.7]}
37... a4 {[%clk 0:00:28.1]} 38. Rf2+ {[%clk 0:01:44.1]} 38... Rf3 {[%clk
0:00:27.3]} 39. Rh2 {[%clk 0:01:44]} 39... Kf4 {[%clk 0:00:25.9]} 40. Kb4 {[%clk
0:01:44.3]} 40... e3 {[%clk 0:00:25.5]} 41. Kxa4 {[%clk 0:01:43.4]} 41... Rf2
{[%clk 0:00:25.7]} 42. Rh1 {[%clk 0:01:43.6]} 42... Rxb2 {[%clk 0:00:25.9]} 43.
Rf1+ {[%clk 0:01:41.5]} 43... Rf2 {[%clk 0:00:25.8]} 44. Re1 {[%clk 0:01:41.5]}
44... e2 {[%clk 0:00:25.8]} 45. Kb3 {[%clk 0:01:41.1]} 45... Ke3 {[%clk
0:00:26.3]} 46. Kc2 {[%clk 0:01:37.3]} 46... Rf1 {[%clk 0:00:26.1]} 0-1